Cogmind - Beta 10.2 @@@ ROGUE MODE // 2021.10.09 @ 17:40:17 Player: OR-2NL Result: Destroyed by D-53 Grenadier with Mini Grenade Launcher Performance ------------- Evolutions (1) 500 Regions Visited (3) 600 Robots Destroyed (0) 0 Value Destroyed (0) 0 Prototype IDs (0) 0 Alien Tech Used (0) 0 Bonus (200) 200 TOTAL SCORE: 1300 Bonus ------- Pacifist 200 Cogmind --------- Core Integrity 0/400 Matter 300/300 Energy 100/100 System Corruption 0% Temperature Cool (0) Movement Core (50) Location -9/Mines Parts ------- > --- POWER (1) -------- (None) > --- PROPULSION (4) --- (None) > --- UTILITY (2) ------ Improved Terrain Scanner Utility Shielding > --- WEAPON (2) ------- (None) > --- INVENTORY (4) ---- Light Ion Engine Hardened Light Armor Plating EM Pulse Gun Assault Rifle Peak State ------------ > --- POWER ------------ (None) > --- PROPULSION ------- Light Treads Light Treads Aluminum Leg Aluminum Leg > --- UTILITY ---------- Improved Terrain Scanner Utility Shielding > --- WEAPON ----------- Assault Rifle > --- INVENTORY -------- Light Ion Engine Hardened Light Armor Plating EM Pulse Gun [Rating: 8] Favorites ----------- Power Ion Engine Engine Ion Engine Propulsion Aluminum Leg Treads Light Treads Leg Aluminum Leg Utility Utility Shielding Device Improved Terrain Scanner Storage Small Storage Unit Protection Utility Shielding Weapon Assault Rifle Energy Gun Small Laser Ballistic Gun Assault Rifle Build | -11 -10 -9 -9 ------- Run | Scr Mat Mat Min Slots Evolved 2 | . . 2 . Power . | . . . . Propulsion 2 | . . 2 . Utility . | . . . . Weapon . | . . . . Parts Attached 4 | . 1 2 1 Power . | . . . . Engine . | . . . . Core . | . . . . Reactor . | . . . . Propulsion 2 | . . 2 . Treads 2 | . . 2 . Leg . | . . . . Wheel . | . . . . Hover . | . . . . Flight . | . . . . Utility 2 | . 1 . 1 Device 1 | . . . 1 Storage . | . . . . Processor . | . . . . Hackware . | . . . . Protection 1 | . 1 . . Artifact . | . . . . Weapon . | . . . . Energy Gun . | . . . . Energy Cannon . | . . . . Ballistic Gun . | . . . . Ballistic Cannon . | . . . . Launcher . | . . . . Special Weapon . | . . . . Impact Weapon . | . . . . Slashing Weapon . | . . . . Piercing Weapon . | . . . . Special Melee Weapon . | . . . . Unidentified Prototypes . | . . . . Parts Lost 4 | . . . 4 Power . | . . . . Propulsion 4 | . . . 4 Utility . | . . . . Weapon . | . . . . Highest Loss Streak 4 | . . . 4 Average Slot Usage (%) 60 | . 47 66 63 Treads 15 | . . 22 18 Leg 19 | . 28 22 16 Device 5 | . . . 8 Protection 9 | . 4 11 11 Ballistic Gun 10 | . 14 11 9 Naked Turns . | . . . . Heaviest Build 4 | 2 3 3 4 Greatest Support 40 | 3 3 40 3 Greatest Overweight (x) 1 | . . . 1 Average Overweight (x) . | . . . . Largest Inventory Capacity 6 | 6 4 4 4 Average Capacity 4 | 4 4 4 4 Most Carried 6 | 6 4 4 4 Average Carried 3 | 4 4 2 3 Final Capacity 4 | 4 4 4 4 Final Carried 4 | 4 4 4 4 Class Distribution -------------------- 100% | Mutant Dominant Class ---------------- Mutant | -10/Materials Mutant | -9/Materials Mutant | -9/Mines Resources | -11 -10 -9 -9 ----------- Run | Scr Mat Mat Min Matter Collected 214 | 200 . . 14 Remotely . | . . . . Salvage Created . | . . . . Parts . | . . . . Haulers Intercepted . | . . . . Recyclers Shooed . | . . . . Parts Field Recycled . | . . . . Retrieved Matter . | . . . . Parts Self-Destructed . | . . . . Prevented . | . . . . Kills | -11 -10 -9 -9 ------- Run | Scr Mat Mat Min Combat Hostiles Destroyed . | . . . . Classes Destroyed . | . . . . Best Kill Streak . | . . . . Combat Bots Only . | . . . . Max Kills in Single Turn . | . . . . Gunslinging . | . . . . Exploded . | . . . . Melee . | . . . . Uniques/NPCs Destroyed . | . . . . Combat | -11 -10 -9 -9 -------- Run | Scr Mat Mat Min Damage Taken 968 | . . . 968 Core 410 | . . . 410 Absorbed by Shields . | . . . . Core Remaining (%) 100 | 100 100 . . Volleys Fired 3 | . 1 2 . Largest 1 | . 1 1 . Hottest 20 | . 20 20 . Shots Fired 3 | . 1 2 . Gun 3 | . 1 2 . Cannon . | . . . . Launcher . | . . . . Special . | . . . . Kinetic 3 | . 1 2 . Thermal . | . . . . Explosive . | . . . . Electromagnetic . | . . . . Robot Hit Streak 1 | . 1 . . Robot Miss Streak 2 | . . 2 . Penetration Max . | . . . . Secondary Targets . | . . . . Shots Hit Robots 1 | . 1 . . Core Hits 1 | . . . 1 Critical Hits . | . . . . Critical Kills . | . . . . Critical Parts Destroyed . | . . . . Melee Attacks . | . . . . Impact . | . . . . Slashing . | . . . . Piercing . | . . . . Sneak Attacks . | . . . . Combat Hostiles . | . . . . Follow-up Attacks . | . . . . Damage Inflicted 32 | . 15 15 2 Guns 29 | . 15 14 . Cannons . | . . . . Explosions . | . . . . Melee . | . . . . Ramming 3 | . . 1 2 Kinetic 29 | . 15 14 . Thermal . | . . . . Explosive . | . . . . Electromagnetic . | . . . . Impact . | . . . . Slashing . | . . . . Piercing . | . . . . Highest Corruption . | . . . . Average Corruption . | . . . . Corruption Purged . | . . . . Overload Shots . | . . . . Overflow Damage . | . . . . Projectiles . | . . . . Explosions . | . . . . Melee . | . . . . Knockbacks . | . . . . Impact . | . . . . Kinetic . | . . . . Secondary . | . . . . Self-Inflicted Damage . | . . . . Shots . | . . . . Rammed 8 | . . 1 7 Targets Rammed 8 | . . 1 7 Kicked . | . . . . Crushed . | . . . . Highest Temperature . | . . . . Average Temperature . | . . . . Received Heat Transfer 39 | . . . 39 Siege Activations . | . . . . Robots Corrupted . | . . . . Combat Hostiles . | . . . . Parts Fried . | . . . . Impact Corruptions . | . . . . Robots Melted . | . . . . Combat Hostiles . | . . . . Parts Melted . | . . . . Heat Transferred . | . . . . Parts Sabotaged . | . . . . Parts Stolen . | . . . . Parts Stripped . | . . . . Power Chain Reactions . | . . . . Missiles Intercepted . | . . . . Alert | -11 -10 -9 -9 ------- Run | Scr Mat Mat Min Peak Influence 52 | . 15 20 52 Initial 7 | . . 5 7 Average 17 | . 10 7 23 Maximum Alert Level . | . . . . Low Security (%) 100 | 100 100 100 100 Level 1 . | . . . . Level 2 . | . . . . Level 3 . | . . . . Level 4 . | . . . . Level 5 . | . . . . High Security . | . . . . Max Security . | . . . . Squads Dispatched . | . . . . Investigation . | . . . . Extermination . | . . . . Reinforcement . | . . . . Assault . | . . . . Garrison . | . . . . Intercept . | . . . . Construction Impeded . | . . . . Haulers Reinforced . | . . . . Stealth | -11 -10 -9 -9 --------- Run | Scr Mat Mat Min Distress Signals . | . . . . Communications Jammed . | . . . . Distress Signals . | . . . . Times Spotted 10 | . 2 1 7 Peak Tracking Total 3 | . 2 1 3 Tactical Retreats 1 | . . . 1 Traps | -11 -10 -9 -9 ------- Run | Scr Mat Mat Min Traps Triggered . | . . . . Indirectly . | . . . . Trap Hack Attempts . | . . . . Triggered . | . . . . Disarmed . | . . . . Reprogrammed . | . . . . Reused . | . . . . Traps Extracted . | . . . . Installed . | . . . . Triggered . | . . . . Machines | -11 -10 -9 -9 ---------- Run | Scr Mat Mat Min Machines Disabled . | . . . . Max in Single Turn . | . . . . Machines Sabotaged . | . . . . Garrisons Compromised . | . . . . Overloaded Fab Kills . | . . . . Fab Network Shutdowns . | . . . . Hacking | -11 -10 -9 -9 --------- Run | Scr Mat Mat Min Machines Accessed . | . . . . Terminals . | . . . . Fabricators . | . . . . Repair Stations . | . . . . Recycling Units . | . . . . Scanalyzers . | . . . . Garrison Access . | . . . . Total Hacks . | . . . . Successful . | . . . . Failed . | . . . . Catastrophic . | . . . . Database Lockouts . | . . . . Manual . | . . . . Terminals . | . . . . Fabricators . | . . . . Repair Stations . | . . . . Recycling Units . | . . . . Scanalyzers . | . . . . Garrison Access . | . . . . Terminal Hacks . | . . . . Fabricator Hacks . | . . . . Repair Station Hacks . | . . . . Recycling Unit Hacks . | . . . . Scanalyzer . | . . . . Garrison Access Hacks . | . . . . Unauthorized Hacks . | . . . . Terminals . | . . . . Fabricators . | . . . . Repair Stations . | . . . . Recycling Units . | . . . . Scanalyzers . | . . . . Garrison Access . | . . . . Data Cores Recovered . | . . . . Used . | . . . . Hacking Detections . | . . . . Full Trace Events . | . . . . Feedback Events . | . . . . Feedback Blocked . | . . . . Robot Schematics Acquired . | . . . . Robots Built . | . . . . Matter . | . . . . Time . | . . . . Total Robot Build Rating . | . . . . Part Schematics Acquired . | . . . . Parts Built . | . . . . Matter . | . . . . Time . | . . . . Total Part Build Rating . | . . . . Parts Repaired . | . . . . Time . | . . . . Parts Recycled . | . . . . Recycled Matter . | . . . . Retrieved Matter . | . . . . Retrieved Components . | . . . . Parts Scanalyzed . | . . . . Part Schematics Acquired . | . . . . Parts Damaged . | . . . . Bothacking | -11 -10 -9 -9 ------------ Run | Scr Mat Mat Min Used RIF Installer . | . . . . Robots Hacked . | . . . . Non-combat . | . . . . Combat . | . . . . Robot Hacks Applied . | . . . . Relay Couplers Released . | . . . . Robots Rewired . | . . . . Allies Hacked . | . . . . Hacks Repelled . | . . . . Allies | -11 -10 -9 -9 -------- Run | Scr Mat Mat Min Total Allies . | . . . . Largest Group . | . . . . Highest-Rated Group . | . . . . Highest-Rated Ally . | . . . . Total Orders . | . . . . Ally Attacks . | . . . . Total Damage . | . . . . Kills . | . . . . Allies Corrupted . | . . . . Allies Melted . | . . . . Intel | -11 -10 -9 -9 ------- Run | Scr Mat Mat Min Robot Analysis Total . | . . . . Derelict Logs Recovered . | . . . . Drone Launches . | . . . . Drone Recoveries . | . . . . Exploration | -11 -10 -9 -9 ------------- Run | Scr Mat Mat Min Turns Passed 269 | 5 55 48 161 Spaces Moved 381 | 2 103 72 204 Core 380 | 2 103 71 204 Treads 1 | . . 1 . Legs . | . . . . Wheels . | . . . . Hover . | . . . . Flight . | . . . . Fastest Speed 50 | 50 50 50 50 Average Speed 62 | 50 50 51 72 Slowest Speed 160 | 50 50 160 100 Overloaded Moves . | . . . . Propulsion Burnouts . | . . . . Robots Hopped . | . . . . Cave-ins Triggered . | . . . . Exploration Rate (%) 24 | 1 30 9 57 Regions Visited 3 Branch Regions 1 Pre-discovered Areas . | . . . . Known Exits Taken . | . . . . Unknown Exits Taken 3 | 1 1 1 . Scrap Searched . | . . . . Spaces Dug . | . . . . Terrain Destroyed . | . . . . Melee . | . . . . Projectile . | . . . . AOE . | . . . . Terrain Rammed . | . . . . Walls Destroyed . | . . . . Machines Disabled . | . . . . Actions | -11 -10 -9 -9 --------- Run | Scr Mat Mat Min Total 403 | 7 104 79 213 Wait 1 | . . 1 . Move 378 | 1 102 71 204 Hop . | . . . . Pick Up 3 | 1 . 2 . Fast Attach 1 | . 1 . . Attach 3 | . . 2 1 Detach 2 | 1 . . 1 Swap . | . . . . Drop 4 | 4 . . . Fire 3 | . 1 2 . Melee . | . . . . Ram . | . . . . Kick . | . . . . Crush 8 | . . 1 7 Escape Stasis . | . . . . Rewire . | . . . . Trap . | . . . . Miscellaneous . | . . . . Route ------- -11/Scrapyard -10/Materials -9/Materials -9/Mines History --------- Turn | Location | Event 4 | -11/Scrapyard | Discovered new exit (range 1) 6 | -11/Scrapyard | Entered Materials 54 | -10/Materials | Discovered new exit (range 16) 61 | -10/Materials | Entered another Materials area 61 | -9/Materials | Evolved 2 slots: Propulsion x2 102 | -9/Materials | Discovered new exit (range 6) 109 | -9/Materials | Entered Mines 183 | -9/Mines | Assembled infested the area 232 | -9/Mines | Core integrity fell below 50% 244 | -9/Mines | Core integrity fell below 20% 270 | -9/Mines | Destroyed by D-53 Grenadier with Mini Grenade Launcher Last Messages --------------- 00224_ U-05 Engineer destroyed. 00225_ K-01 Serf collects debris. 00226_ The unstable cave ceiling collapses. 00227_ K-01 Serf collects debris. 00229_ Aluminum Leg destroyed. 00229_ K-01 Serf destroyed. 00229_ R-06 Scavenger destroyed. 00229_ K-01 Serf destroyed. 00230_ Acquired 14 matter. 00231_ Laser Drill disabled. 00232_ The unstable cave ceiling collapses. 00233_ K-01 Serf collects debris. 00238_ Lgt. Treads destroyed. 00238_ Aluminum Leg destroyed. 00241_ K-01 Serf collects debris. 00244_ The unstable cave ceiling collapses. 00266_ U-05 Engineer lays Concrete. 00266_ Lgt. Treads destroyed. 00269_ The unstable cave ceiling collapses. 00269_ U-05 Engineer builds a Wall. Map ----- +----------------------------------------------------+ | ????????????# | | ????????????# | | ?????????????????# #### | | ???????????????#?## ##? | | ???????????????#?## ## | | ????????????????## # # | | ????????????????# # | | ???????????????# # # # | | ???????????????# ### # | | ???????????????#####??# | | ?????????????????????## | | ?????????????????#?### # | | ??????????????????## # | | ??????#????????#??# ! # | | ?????????????##???# % ## | | ????????????## #?### ###? | | ????????????# ## # * ##??# | | ?????????????# ## ##???? | | ????????????## ##???? | | ???????????## "" ###?? | | ???????????# ### | | ???????????# ## | | ????#???##### # | | ???????? #?## ## | | ????????# #??#### ####? | | ??????#?#@#?### ### ##???? | | ?????#### ### ##?# #????? | | ??#### #??# ###### | | ??# ## ##??# | | ??# d ### #???# | | ??# #?## ###??########## | | ?## ###??# #?????#?????#?? | | ??# ######?#?# #????????????? | | ??## ##????????# ???????????? | | #??# #????????? ????#?????? | | ??## #########? ?????????? | | ??# #?# ## ???????? | | ??# """ """ #?# ##?# #??????? | | ??# """ """ #?## #??? #??????? | | ??# """ """ #??? ???? #??????? | | ??# #???# ?????????#???# | | ??# """ """ #????##?????????????# | | ??# """ """ #???????? ??????????# | | ??# """ """ #???????????????????# | | ??# #???????????????????? | | ??# """ """ #??#????????????????? | | ??# """ """ #???????????????????? | | ??# """ """ #???????????????????? | | ??# ? #???????????????????? | | ??# ? #???????????????????? | +----------------------------------------------------+ Best States ------------- Heat Dissipation 28 Energy Generation 5 Energy Capacity 100 Matter Stores 300 Matter Capacity 300 Sight Range 16 Terrain Scan Range 16 Terrain Scan Density 10 Utility Shielding 33 Evasion (%) 50 Recoil Reduction 2 Item Schematics ----------------- None Robot Schematics ------------------ None Fabricated ------------ Nothing Alien Tech Used ----------------- None Achievements -------------- None Challenges ------------ None Game ------ Seed InertialInertialCarapace Manual? 0 Play Time 00:09:12 Cumulative 455.8 hours Start 2021.10.09 @ 17:22:32 End 2021.10.09 @ 17:40:17 Sessions 1 Manual Loads 0 Difficulty Rogue Special Mode None Game No. 91 Rogue 54 Adventurer 4 Explorer 33 Win Type - Total 35 Types 15/6/4/2/2/3/2/0/1 Lore% 93 Gallery% 91 Achievement% 88 Wizard Run 0 Options --------- ASCII 0 Keyboard 1 Movement Vi Keybinds 0 Fullscreen 2 Font 24/Proggy Map View 76x50 Tactical HUD 1 Map Filters NONE Filters NONE Steam 1 RUN: 6e65f00b-8404-4673-981c-05d1a296568a